bitfinex/quotes_ETHUSD_20250519
["timestamp","ask_amount","ask_price","bid_price","bid_amount"]
[1747615617157,4.1025641,2437.5,2437.4,10.768]
[1747615617357,4.10235373,2437.7,2437.4,10.768]
[1747615617571,10.766,2438.2,2437.3,0.55]
[1747615617572,4.1025641,2437.5,2437.3,0.55]
[1747615617861,4.10268466,2437.5,2437.4,10.768]
[1747615618259,4.10189097,2437.9,2437.0,0.7975]
[1747615618559,4.10312984,2437.2,2437.1,10.765]
[1747615618855,4.1028107,2437.4,2437.1,10.765]
[1747615619361,10.766,2438.2,2437.0,0.7975]
[1747615619559,4.10233778,2437.7,2436.8,17.735]
[1747615619764,4.1031843,2437.2,2437.0,10.765]
[1747615619928,4.10309696,2437.2,2437.0,10.765]
[1747615620425,4.1028596,2437.4,2437.0,10.765]
[1747615620633,4.10282809,2437.4,2437.1,0.55]
[1747615620829,0.7256,2438.3,2437.1,0.55]
[1747615621035,4.10264966,2437.5,2437.1,0.55]
[1747615621228,4.10112087,2438.4,2437.3,0.55]
[1747615621564,4.10240969,2437.6,2437.3,0.55]
[1747615621948,14.86326024,2438.3,2437.3,0.55]
[1747615622259,14.86334296,2438.3,2437.4,10.764]
[1747615622448,4.10141996,2438.2,2437.4,10.764]
[1747615622762,4.10168171,2438.1,2437.5,10.764]
[1747615622960,10.762,2438.3,2437.5,10.764]
[1747615623137,0.30956403,2438.5,2437.5,10.764]
[1747615623329,4.10122776,2438.3,2437.5,12.25068361]
[1747615623530,4.10113747,2438.4,2437.5,10.764]
[1747615623757,4.10147891,2438.2,2437.4,10.764]
[1747615623965,10.76,2438.3,2437.4,10.764]
[1747615624136,10.76,2438.3,2437.5,0.80372111]
[1747615624335,4.1015771,2438.1,2437.5,0.7627]
[1747615624560,4.10200102,2437.9,2437.5,11.5267]
[1747615624755,4.10178855,2438.0,2437.5,10.764]
[1747615624956,4.10140122,2438.2,2437.5,10.764]
[1747615625159,10.759,2437.9,2437.5,10.764]
[1747615625367,10.759,2437.9,2437.2,0.7627]
[1747615625558,4.10210124,2437.8,2437.3,10.763]
[1747615625754,14.86093198,2437.9,2437.3,10.763]
[1747615626070,10.759,2437.9,2437.3,10.763]
[1747615628132,0.30036784,2438.5,2437.4,0.55]
[1747615628469,4.1015732,2438.1,2437.4,1.75757]
[1747615628676,4.09987763,2439.1,2437.5,0.04102051]
[1747615628872,4.10121806,2438.3,2437.4,0.55]
[1747615629063,4.1015202,2438.2,2437.4,0.55]
[1747615629374,4.10121806,2438.3,2437.3,0.55]
[1747615629536,10.756,2438.4,2437.5,10.762]
[1747615629733,0.7256,2439.1,2437.7,0.7772]
[1747615629972,10.756,2439.0,2437.9,0.55]
[1747615630271,4.10072447,2438.6,2437.9,0.55]
[1747615630475,4.10020911,2438.9,2437.7,11.5392]
[1747615630770,4.10185432,2438.0,2437.3,11.5382]
[1747615631082,4.10163688,2438.1,2437.4,1.15382]
[1747615631261,10.754,2438.4,2437.4,5.25651467]
[1747615631435,4.10106788,2438.4,2437.6,0.7772]
[1747615631636,4.10104986,2438.4,2437.6,0.7772]
[1747615631877,4.10088693,2438.5,2437.6,0.7772]
[1747615631878,4.10122954,2438.3,2437.6,0.7772]
[1747615632037,4.10104986,2438.4,2437.7,11.311]
[1747615632241,4.10123253,2438.3,2437.7,11.311]
[1747615632436,4.10123253,2438.3,2437.4,1.15382]
[1747615632437,8.0,2438.4,2437.5,0.8072]
[1747615632669,4.10062237,2438.7,2437.5,0.8072]
[1747615632670,4.10152122,2438.2,2437.5,1.49523908]
[1747615632870,10.753,2438.7,2437.8,0.55]
[1747615632871,4.10133051,2438.3,2437.8,0.55]
[1747615633071,4.10110452,2438.4,2437.8,0.55]
[1747615633241,10.753,2438.7,2437.8,0.55]
[1747615633436,17.725,2439.5,2438.2,0.55]
[1747615633637,4.10037915,2438.8,2438.3,10.761]
[1747615633840,0.7256,2439.7,2438.6,0.55]
[1747615634084,4.09909535,2439.6,2439.0,0.55]
[1747615634248,4.09882588,2439.8,2439.2,0.55]
[1747615634449,14.85052285,2440.0,2439.1,10.76]
[1747615634450,4.09896016,2439.7,2439.1,10.76]
[1747615634672,4.09877213,2439.8,2439.2,0.55]
[1747615634880,4.09860294,2439.9,2439.4,0.55]
[1747615635195,4.09872383,2439.8,2439.4,0.55]
[1747615635367,10.751,2440.5,2439.8,0.55]
[1747615635692,4.09836065,2440.0,2439.9,11.31]
[1747615636454,4.09819269,2440.1,2440.0,0.55]
[1747615638183,4.09819269,2440.1,2439.7,1.3461]
[1747615638184,4.09869661,2439.8,2439.7,1.3461]
[1747615638494,4.09869661,2439.8,2439.7,12.0941]
[1747615639093,4.09852862,2439.9,2439.8,0.55]
[1747615639310,4.09869661,2439.8,2439.7,0.7961]
[1747615639488,4.09936869,2439.4,2439.3,0.7696]
[1747615639977,4.09927035,2439.5,2439.3,0.7696]
[1747615640185,4.09936869,2439.4,2439.3,1.3196]
[1747615640688,4.0991372,2439.6,2439.4,0.55]
[1747615640916,4.09734021,2440.7,2439.4,0.55]
[1747615641090,14.84052099,2440.5,2439.4,0.55]
[1747615641409,4.09920065,2439.5,2439.4,0.55]
[1747615641705,4.09833241,2440.1,2439.4,11.296]
[1747615641872,4.09880502,2439.8,2439.4,12.50256]
[1747615642072,4.09858589,2439.9,2439.4,12.50256]
[1747615642291,4.09861957,2439.9,2439.4,12.50256]
[1747615642490,4.09831702,2440.1,2439.4,12.50256]
[1747615642678,4.09851098,2440.0,2439.4,16.60192574]
[1747615643013,10.74,2440.6,2439.8,0.55]
[1747615643216,4.09776158,2440.4,2440.0,0.55]
[1747615643387,4.09776158,2440.4,2440.2,0.55]
[1747615643388,4.09785682,2440.3,2440.2,0.55]
[1747615644105,8.0,2441.2,2440.2,1.344]
[1747615644106,4.09651386,2441.1,2440.2,1.344]
[1747615644292,4.09836065,2440.0,2439.9,29.001]
[1747615644625,4.09820266,2440.1,2440.0,0.55]
[1747615645304,4.09820266,2440.1,2440.0,11.293]
[1747615645813,4.0976889,2440.4,2440.0,11.293]
[1747615645979,4.09819269,2440.1,2440.0,11.293]
[1747615646176,4.09752099,2440.5,2440.0,11.293]
[1747615646387,4.09690707,2440.9,2440.1,0.55]
[1747615646388,10.737,2440.9,2440.1,0.55]
[1747615646612,4.09754702,2440.5,2440.1,0.55]
[1747615646918,4.09779525,2440.4,2440.1,0.55]
[1747615647211,4.09750035,2440.6,2440.3,0.55]
[1747615647415,4.09727566,2440.7,2440.3,0.55]
[1747615648083,4.09598853,2441.5,2440.3,0.55]
[1747615648283,0.7256,2441.0,2439.9,17.706]
[1747615648518,4.09836065,2440.0,2439.9,28.447]
[1747615648680,4.09831448,2440.1,2439.9,28.447]
[1747615648879,0.31244878,2440.8,2440.0,0.04098107]
[1747615649083,4.0975823,2440.5,2440.0,3.48151811]
[1747615649319,4.09668168,2441.0,2440.2,0.55]
[1747615649533,4.09766891,2440.5,2440.2,0.55]
[1747615649729,4.09758011,2440.5,2440.2,0.55]
[1747615649890,4.09708969,2440.8,2440.2,15.38089563]
[1747615650088,4.09692305,2440.9,2440.4,0.55]
[1747615650284,4.09711321,2440.8,2440.6,0.55]
[1747615650486,0.31386216,2441.9,2440.8,0.55]
[1747615650690,4.09651386,2441.1,2441.0,0.55]
[1747615651018,10.733,2442.0,2441.0,11.291]
[1747615651317,10.733,2442.0,2441.0,14.1902]
[1747615651520,10.733,2442.0,2440.9,28.442]
[1747615651521,4.09668168,2441.0,2440.9,28.442]
[1747615651686,4.09668168,2441.0,2440.9,28.992]
[1747615651887,14.82581948,2441.6,2440.9,28.992]
[1747615652196,4.09668168,2441.0,2440.9,18.251]
[1747615652409,4.09668168,2441.0,2440.9,28.991]
[1747615652915,4.09668168,2441.0,2440.3,0.7908]
[1747615652916,4.0976889,2440.4,2440.3,0.7908]
[1747615653116,4.0976889,2440.4,2440.3,11.5308]
[1747615653488,4.09802475,2440.2,2440.1,18.01712608]
[1747615653722,4.09802475,2440.2,2440.1,28.75712608]
[1747615654301,4.09802475,2440.2,2440.1,20.97191869]
[1747615654612,4.09800385,2440.3,2440.1,32.26191869]
[1747615654815,4.0979749,2440.3,2440.1,31.94279261]
[1747615655236,4.0979749,2440.3,2440.1,17.698]
[1747615655237,4.09802475,2440.2,2440.1,17.698]
[1747615655616,4.09802475,2440.2,2440.1,18.248]
[1747615655824,4.09802475,2440.2,2440.1,17.698]
[1747615656937,4.09802475,2440.2,2440.1,18.248]
[1747615657510,4.09802475,2440.2,2440.1,28.988]
[1747615657926,4.09778749,2440.4,2440.2,0.55]
[1747615658110,4.09785682,2440.3,2440.2,0.55]
[1747615658305,4.09774545,2440.4,2440.2,0.55]
[1747615658637,4.09771185,2440.4,2440.2,0.55]
[1747615659005,10.726,2440.9,2440.2,0.55]
[1747615659206,4.09705089,2440.8,2440.2,0.55]
[1747615659407,4.09680178,2441.0,2440.6,0.55]
[1747615659710,4.0973531,2440.6,2440.5,0.8026]
[1747615659927,4.0973531,2440.6,2440.5,12.0926]
[1747615660538,4.09802475,2440.2,2440.1,18.4625]
[1747615660849,4.09802475,2440.2,2440.1,29.7515]
[1747615661210,4.09793781,2440.3,2440.2,0.55]
[1747615661518,4.0972287,2440.7,2440.2,3.62112789]
[1747615661709,4.09614955,2441.4,2440.4,0.55]
[1747615662109,4.09752099,2440.5,2440.4,0.55]
[1747615662318,4.09785682,2440.3,2440.2,0.55]
[1747615662512,4.09785682,2440.3,2440.2,11.289]
[1747615662719,4.09802475,2440.2,2440.1,17.698]
[1747615663122,4.09802475,2440.2,2440.1,28.437]
[1747615664150,4.09802475,2440.2,2440.1,17.698]
[1747615665653,0.7256,2441.4,2440.1,20.57361261]
[1747615665841,4.09785682,2440.3,2440.2,0.55]
[1747615666042,4.09774177,2440.4,2440.2,0.55]
[1747615666255,4.09667818,2441.1,2440.6,0.55]
[1747615666555,0.31002146,2441.9,2440.8,4.64691655]
[1747615666758,4.0961087,2441.4,2440.8,4.64691655]
[1747615666962,5.13266416,2442.1,2441.1,0.55]
[1747615667251,4.09594971,2441.5,2441.2,0.7986]
[1747615667444,4.09594971,2441.5,2441.4,0.55]
[1747615667641,4.09575888,2441.6,2441.4,0.55]
[1747615667847,4.09584271,2441.5,2441.4,0.55]
[1747615668044,4.09575726,2441.6,2441.4,0.55]
[1747615668256,4.09514349,2442.0,2441.4,0.59095675]
[1747615668577,4.09416581,2442.5,2441.8,0.55]
[1747615668872,0.7256,2443.0,2442.0,0.55]
[1747615668873,5.31345418,2442.7,2442.0,0.55]
[1747615669071,4.09471517,2442.2,2442.0,0.55]
[1747615669227,4.09433344,2442.4,2441.8,0.55]
[1747615669429,4.09517179,2441.9,2441.8,11.271]
[1747615669776,4.09515868,2442.0,2441.8,11.268]
[1747615669926,4.09517179,2441.9,2441.8,11.268]
[1747615671342,4.0953395,2441.8,2441.7,0.31912608]
[1747615671638,4.0953395,2441.8,2441.7,11.58712608]
[1747615672047,4.09502847,2442.0,2441.8,0.55]
[1747615672265,4.09517179,2441.9,2441.8,0.55]
[1747615672783,4.09601048,2441.4,2441.3,0.7744]
[1747615672981,4.09576805,2441.6,2441.4,0.55]
[1747615673492,4.09520917,2441.9,2441.4,0.55]
[1747615673776,4.09560424,2441.7,2441.6,0.55]
[1747615673982,4.09560424,2441.7,2441.3,11.4914]
[1747615673983,4.09584271,2441.5,2441.4,0.55]
[1747615674166,4.09470994,2442.2,2441.3,0.7744]
[1747615674385,4.09601048,2441.4,2441.3,0.7744]
[1747615674680,4.09601048,2441.4,2441.3,11.4914]
[1747615675183,4.09601048,2441.4,2441.3,0.7744]
[1747615675484,10.71,2442.0,2441.3,11.4914]
[1747615675786,4.09593743,2441.5,2441.3,14.41014]
[1747615675952,4.09601048,2441.4,2441.3,11.4914]
[1747615676282,4.09601048,2441.4,2441.3,12.0414]
[1747615676480,4.09601048,2441.4,2441.3,12.0404]
[1747615678192,4.0957337,2441.6,2441.4,0.55]
[1747615678396,10.707,2442.3,2441.4,0.59095609]
[1747615678592,4.09537711,2441.8,2441.4,2.16776991]
[1747615678753,4.09517756,2441.9,2441.4,2.16776991]
[1747615678959,4.09561521,2441.7,2441.4,2.16776991]
[1747615679160,4.09568807,2441.6,2441.4,2.16776991]
[1747615679360,4.09584271,2441.5,2441.4,0.55]
[1747615679695,4.09584271,2441.5,2441.4,11.266]
[1747615679994,4.09557421,2441.7,2441.4,11.266]
[1747615680195,10.707,2442.3,2441.4,0.55]
[1747615680400,4.09584271,2441.5,2441.4,0.55]
[1747615680586,4.09584271,2441.5,2441.4,11.266]
[1747615680964,4.09433344,2442.4,2441.4,12.47004]
[1747615681158,14.79672587,2442.8,2441.9,0.55]
[1747615681407,4.09428146,2442.5,2442.1,0.55]
[1747615681567,4.09349543,2442.9,2442.1,0.55]
[1747615682005,4.09466874,2442.2,2442.1,0.55]
[1747615682293,4.09466874,2442.2,2442.1,11.266]
[1747615683500,4.09483641,2442.1,2442.0,18.4431]
[1747615683662,4.09483641,2442.1,2442.0,28.955]
[1747615683861,4.09483641,2442.1,2442.0,18.239]
[1747615684094,4.09483641,2442.1,2442.0,28.955]
[1747615684304,4.0953395,2441.8,2441.2,17.686]
[1747615684464,4.09601048,2441.4,2441.3,11.03412608]
[1747615684665,4.09601048,2441.4,2441.3,0.31912608]
[1747615686219,4.09601048,2441.4,2441.3,0.86912608]
[1747615686383,4.09601048,2441.4,2441.3,0.31912608]
[1747615686587,12.09601048,2441.4,2441.3,0.31912608]
[1747615687028,14.79201048,2441.4,2441.3,0.31912608]
[1747615687191,4.09601048,2441.4,2441.3,0.31912608]
[1747615688040,4.09651386,2441.1,2441.0,0.55]
[1747615689014,0.7256,2441.3,2440.5,17.686]
[1747615689215,4.09785682,2440.3,2440.1,0.31912608]
[1747615689448,4.09802475,2440.2,2440.1,0.31912608]
[1747615691018,4.09802475,2440.2,2440.1,11.03712608]
[1747615691220,4.09802475,2440.2,2440.1,11.58712608]
[1747615691404,4.09802475,2440.2,2440.1,11.268]
[1747615691861,4.09802475,2440.2,2440.1,10.718]
[1747615692150,4.09802475,2440.2,2440.1,11.268]
[1747615692357,4.09802475,2440.2,2440.1,0.55]
[1747615692655,4.09802475,2440.2,2440.1,11.268]
[1747615693939,4.09729121,2440.7,2440.4,0.55]
[1747615694135,4.09730862,2440.7,2440.4,18.244]
[1747615694470,14.79006085,2441.4,2440.4,18.244]
[1747615694679,4.09752099,2440.5,2440.4,18.244]
[1747615695028,4.09752099,2440.5,2440.4,0.55]
[1747615695328,4.09752099,2440.5,2438.0,1.03058903]
[1747615695329,4.09852862,2439.9,2439.8,10.719]
[1747615695548,4.09886461,2439.7,2439.6,17.694]
[1747615695823,14.78989535,2440.3,2439.6,17.694]
[1747615696030,10.692,2440.8,2439.7,8.04098339]
[1747615696261,4.09799477,2440.3,2440.0,0.55]
[1747615696468,4.09799477,2440.3,2440.2,0.55]
[1747615697171,4.09718523,2440.7,2440.2,0.55]
[1747615697453,4.09785682,2440.3,2440.2,0.55]
[1747615697623,4.09836065,2440.0,2439.9,0.8128]
[1747615697824,4.09836065,2440.0,2439.9,11.5058]
[1747615698021,4.09836065,2440.0,2439.9,12.0558]
[1747615698225,4.09886461,2439.7,2439.6,17.694]
[1747615698421,4.09866883,2439.9,2439.7,0.55]
[1747615698854,4.09869661,2439.8,2439.7,10.693]
[1747615699065,0.7256,2440.4,2439.7,10.693]
[1747615699241,4.0976889,2440.4,2439.8,0.55]
[1747615699433,4.09853488,2439.9,2439.8,0.55]
[1747615699749,4.09853488,2439.9,2439.8,11.244]
[1747615701434,4.09809303,2440.2,2439.9,0.55]
[1747615701640,4.09767585,2440.5,2440.1,1.3505]
[1747615701865,4.09771261,2440.4,2440.1,1.3505]
[1747615702163,4.09785682,2440.3,2440.2,0.55]
[1747615702369,4.09785682,2440.3,2440.2,11.244]
[1747615703184,4.09527429,2441.9,2440.2,11.244]
[1747615703476,4.0976889,2440.4,2440.3,0.55]
[1747615704279,4.0976889,2440.4,2440.1,0.8005]
[1747615704280,4.09802475,2440.2,2440.1,0.8005]
[1747615704579,4.0972566,2440.7,2440.1,12.0445]
[1747615704774,0.7256,2441.2,2440.2,0.55]
[1747615704775,4.0971509,2440.8,2440.2,0.55]
[1747615705053,0.7256,2441.2,2440.2,0.55]
[1747615705054,4.09727992,2440.7,2440.2,8.55]
[1747615705381,4.09802475,2440.2,2440.1,11.4945]
[1747615705875,4.09802475,2440.2,2440.1,11.244]
[1747615706173,4.09802475,2440.2,2440.1,10.694]
[1747615706975,4.09802475,2440.2,2440.1,11.244]
[1747615707373,4.09802475,2440.2,2439.7,0.7594]
[1747615707574,4.09869661,2439.8,2439.7,0.7594]
[1747615707783,4.09869661,2439.8,2439.7,11.4534]
[1747615708378,4.09869661,2439.8,2439.7,12.0034]
[1747615708689,4.098532,2439.9,2439.3,11.4676]
[1747615708992,4.09940356,2439.4,2439.3,10.694]
[1747615709155,4.09940356,2439.4,2439.2,0.31912608]
[1747615709156,4.09953675,2439.3,2439.2,0.31912608]
[1747615709970,4.09953675,2439.3,2439.2,0.86912608]
[1747615710145,4.09948316,2439.4,2439.2,0.31912608]
[1747615710581,4.09953675,2439.3,2439.2,0.31912608]
[1747615711550,4.09953675,2439.3,2439.2,0.86912608]
[1747615712050,4.09942552,2439.4,2439.2,0.86912608]
[1747615712266,10.677,2440.1,2439.5,0.55]
[1747615712666,4.09903262,2439.6,2439.5,0.55]
[1747615712951,4.09885674,2439.8,2439.4,0.59098861]
[1747615713167,4.09851714,2440.0,2439.4,0.55]
[1747615713364,10.676,2440.0,2439.4,0.55]
[1747615713647,4.09691153,2440.9,2439.6,0.55]
[1747615713853,4.09886461,2439.7,2439.6,0.55]
[1747615714188,18.675,2440.8,2439.6,11.246]
[1747615714386,18.675,2440.8,2439.8,0.55]
[1747615714387,4.0973531,2440.6,2439.8,0.55]
[1747615714564,10.674,2440.7,2439.8,23.96278509]
[1747615714759,4.09804278,2440.2,2439.8,19.86421306]
[1747615714951,4.09827819,2440.1,2440.0,0.55]
[1747615715481,4.09827819,2440.1,2440.0,11.246]
[1747615716184,4.09808786,2440.2,2440.0,11.246]
[1747615716389,10.672,2440.7,2440.0,14.1405]
[1747615716575,4.09786117,2440.3,2440.0,11.246]
[1747615716953,14.76921694,2440.7,2440.0,11.246]
[1747615717288,4.09819269,2440.1,2440.0,11.246]
[1747615717486,4.09804399,2440.2,2439.8,17.699]
[1747615717688,4.09852862,2439.9,2439.8,18.249]
[1747615717892,4.09886461,2439.7,2439.6,10.696]
[1747615718389,4.09920065,2439.5,2439.4,11.01412608]
[1747615718600,4.09950344,2439.4,2439.2,0.7885]
[1747615718792,10.67,2440.0,2439.3,10.695]
[1747615718988,4.09913685,2439.6,2439.3,10.695]
[1747615719297,4.09936869,2439.4,2439.3,10.695]
[1747615719506,4.09936869,2439.4,2439.2,1.77988622]
[1747615719507,4.09953675,2439.3,2439.2,1.77988622]
[1747615719810,4.09953675,2439.3,2439.2,11.4835]
[1747615719957,4.09953675,2439.3,2439.2,12.0335]
[1747615720157,4.09970482,2439.2,2439.1,18.01812608]
[1747615720357,4.09970482,2439.2,2439.1,28.71312608]
[1747615720558,4.09958446,2439.3,2439.1,28.71312608]
[1747615720868,4.0994574,2439.4,2439.2,0.55]
[1747615721066,4.09727423,2440.7,2439.2,8.59099316]
[1747615721252,0.7256,2440.6,2439.7,4.64883652]
[1747615721458,11.3916,2441.1,2440.2,4.64796741]
[1747615721692,15.48817107,2441.1,2440.3,0.55]
[1747615721853,4.0973531,2440.6,2440.5,0.55]
[1747615723311,4.09699349,2440.9,2440.2,17.7]
[1747615723617,4.09752099,2440.5,2440.4,11.245]
[1747615724848,4.09752099,2440.5,2440.4,0.55]
[1747615725042,4.09752099,2440.5,2440.4,11.245]
[1747615726155,4.09752099,2440.5,2440.2,17.7]
[1747615726362,4.09869661,2439.8,2439.7,0.31912608]
[1747615726852,12.82429661,2439.8,2439.7,0.31912608]
[1747615727614,4.09869661,2439.8,2439.7,0.31912608]
[1747615727818,4.09869661,2439.8,2439.7,0.86912608]
[1747615728356,4.09869661,2439.8,2439.7,0.31912608]
[1747615728543,4.09886461,2439.7,2439.6,0.55]
[1747615729122,10.655,2440.0,2439.5,0.55]
[1747615729318,10.655,2440.0,2439.5,1.75133]
[1747615729523,4.09867113,2439.9,2439.5,1.75133]
[1747615729725,4.0987041,2439.8,2439.5,1.75133]
[1747615729958,4.09903262,2439.6,2439.5,1.75133]
[1747615730158,4.09936869,2439.4,2439.3,1.3553]
[1747615730466,4.09920065,2439.5,2439.4,0.55]
[1747615731379,4.09874867,2439.8,2439.4,0.55]
[1747615731380,10.651,2440.1,2439.4,0.55]
[1747615731660,4.09936869,2439.4,2439.3,0.25745347]
[1747615731869,4.09936869,2439.4,2439.0,0.31912608]
[1747615731870,4.0998729,2439.1,2439.0,0.31912608]
[1747615732242,12.8254729,2439.1,2439.0,0.31912608]
[1747615732778,13.12578131,2439.1,2439.0,0.31912608]
[1747615733076,16.8550898,2439.1,2439.0,0.31912608]
[1747615733227,4.10138626,2438.2,2438.1,0.25736375]
[1747615734961,4.10172272,2438.0,2437.9,17.699]
[1747615735333,14.74930857,2438.3,2437.9,17.699]
[1747615735536,14.74930857,2438.3,2438.0,0.55]
[1747615736074,4.10140037,2438.2,2438.0,0.55]
[1747615736560,4.10155448,2438.1,2438.0,0.55]
[1747615736942,4.10146019,2438.2,2438.0,0.55]
[1747615737126,4.10107347,2438.4,2438.0,0.55]
[1747615737329,10.645,2438.5,2437.6,0.55]
[1747615737549,4.1016563,2438.1,2437.6,1.6712]
[1747615737829,4.10121806,2438.3,2437.6,0.55]
[1747615738036,4.10273241,2437.4,2437.3,0.7535]
[1747615738358,4.10290075,2437.3,2437.2,0.31912608]
[1747615739356,0.7256,2438.3,2437.3,0.55]
[1747615739656,4.10158182,2438.1,2437.5,0.55]
[1747615739867,4.10158182,2438.1,2437.7,0.55]
[1747615740160,10.643,2438.2,2437.7,0.55]
[1747615740527,14.74451006,2438.2,2437.7,0.55]
[1747615740731,4.10205923,2437.8,2437.7,0.55]
[1747615742176,4.10205923,2437.8,2437.6,10.664]
[1747615742385,4.10191864,2437.9,2437.6,11.214]
[1747615742579,0.7256,2438.9,2438.3,4.10109253]
[1747615742781,10.639,2439.0,2438.4,0.5910094]
[1747615743080,10.639,2439.0,2438.6,0.55]
[1747615743279,1.03469034,2439.9,2438.7,0.04100125]
[1747615743444,10.638,2439.9,2439.2,0.55]
[1747615743645,10.638,2439.9,2439.5,0.55]
[1747615743947,0.7256,2440.3,2439.5,4.09919521]
[1747615744283,4.0982851,2440.1,2439.6,0.55]
[1747615744580,4.09839666,2440.0,2439.6,0.55]
[1747615744759,4.0982851,2440.1,2439.6,0.55]
[1747615744760,4.09857536,2439.9,2439.6,0.55]
[1747615744952,10.636,2440.2,2439.6,0.55]
[1747615745151,4.09849289,2440.0,2439.6,0.55]
[1747615745884,1.92665246,2440.4,2440.0,0.55]
[1747615746086,4.097621,2440.5,2440.2,0.55]
[1747615746280,4.09769779,2440.4,2440.2,0.55]
[1747615746456,0.7256,2441.3,2440.2,8.55]
[1747615746655,0.7256,2441.3,2440.4,4.64760034]
[1747615746885,0.7256,2441.7,2440.8,0.55]
[1747615747184,8.0,2441.5,2440.8,11.214]
[1747615747431,4.09663002,2441.1,2440.8,11.214]
[1747615747574,4.09670542,2441.0,2440.8,11.214]
[1747615747974,10.626,2441.8,2440.9,17.703]
[1747615748149,4.09500409,2442.0,2441.1,0.55]
[1747615748347,4.09511471,2442.0,2441.3,0.55]
[1747615748547,6.746655,2442.4,2441.6,4.09564761]
[1747615748778,1.92665246,2442.4,2441.8,0.55]
[1747615748982,1.92665246,2442.4,2441.7,0.55]
[1747615749272,4.09509643,2442.0,2441.7,0.55]
[1747615749479,14.71925801,2442.5,2441.5,0.55]
[1747615749643,4.09450108,2442.3,2441.6,10.661]
[1747615749847,4.0953395,2441.8,2441.7,0.55]
[1747615750583,4.0953395,2441.8,2441.7,11.211]
[1747615751576,4.09521742,2441.9,2441.8,0.55]
[1747615752074,4.09501568,2442.0,2441.8,0.55]
[1747615752280,4.09517179,2441.9,2441.8,0.55]
[1747615753381,12.09387267,2442.7,2441.8,0.55]
[1747615753382,10.614,2442.4,2441.8,0.55]
[1747615753588,0.7256,2443.3,2442.0,0.55]
[1747615753799,4.09340764,2443.0,2442.3,0.55]
[1747615754088,4.09383059,2442.7,2442.6,1.3267]
[1747615754289,4.09383059,2442.7,2442.6,0.89175984]
[1747615754459,4.09383059,2442.7,2442.6,0.34175984]
[1747615755060,14.70283059,2442.7,2442.6,0.34175984]
[1747615755483,22.70283059,2442.7,2442.6,0.34175984]
[1747615757005,23.42843059,2442.7,2442.6,0.34175984]
[1747615758085,12.81943059,2442.7,2442.6,0.34175984]
[1747615758301,34.02743059,2442.7,2442.6,0.34175984]
[1747615758601,12.81943059,2442.7,2442.6,0.34175984]
[1747615759000,15.41943059,2442.7,2442.6,0.34175984]
[1747615759192,4.09517179,2441.9,2441.8,0.55]
[1747615760102,4.09517179,2441.9,2441.8,11.155]
[1747615760503,4.09517179,2441.9,2441.7,0.55]
[1747615760799,4.0953395,2441.8,2441.7,0.55]
[1747615760998,4.09617826,2441.3,2441.2,0.7705]
[1747615761210,4.09517179,2441.9,2441.2,11.3755]
[1747615761403,4.09597043,2441.5,2441.3,0.55]
[1747615761706,4.09601048,2441.4,2441.3,0.55]
[1747615761903,4.09558358,2441.7,2441.3,0.55]
[1747615762085,4.09577644,2441.6,2441.3,0.55]
[1747615762284,4.09547907,2441.8,2441.4,1.38136346]
[1747615762473,4.09517179,2441.9,2441.4,1.38136346]
[1747615762806,4.09553592,2441.7,2441.5,0.55]
[1747615763607,10.593,2442.1,2441.5,0.55]
[1747615763784,4.09601048,2441.4,2441.3,0.55]
[1747615763983,4.09601048,2441.4,2441.2,11.3755]
[1747615764283,4.09617826,2441.3,2441.2,11.9255]
[1747615764485,4.09589236,2441.5,2441.3,0.55]
[1747615764680,4.09498723,2442.1,2441.3,1.79755]
[1747615764879,4.09549267,2441.8,2441.3,1.79755]
[1747615765210,4.09562123,2441.7,2441.3,9.79755]
[1747615765408,4.09577478,2441.6,2441.3,9.79755]
[1747615765605,4.09577478,2441.6,2441.3,1.79755]
[1747615766204,4.09489897,2442.1,2441.5,0.55]
[1747615766707,4.09349904,2442.9,2441.7,0.55]
[1747615766872,10.585,2442.6,2441.9,0.55]
[1747615767078,4.81894825,2443.0,2441.9,0.55]
[1747615767079,4.09500409,2442.0,2441.9,0.55]
[1747615767272,4.09416581,2442.5,2441.6,0.8141]
[1747615767273,4.09550722,2441.7,2441.6,0.8141]
[1747615767510,4.09627651,2441.3,2441.1,8.8141]
[1747615767683,4.09466874,2442.2,2441.2,10.604]
[1747615767872,4.09610781,2441.4,2441.2,10.604]
[1747615768077,4.09579997,2441.6,2441.2,10.604]
[1747615768299,4.82010454,2442.3,2441.3,0.55]
[1747615768300,0.7256,2442.3,2441.3,0.55]
[1747615768574,4.09519941,2441.9,2441.5,0.55]
[1747615768803,4.09537771,2441.8,2441.6,0.46459842]
[1747615768999,4.0950285,2442.0,2441.6,0.55]
[1747615769313,4.09506597,2442.0,2441.6,0.55]
[1747615769485,4.09450108,2442.3,2441.6,0.55]
[1747615769812,4.09530695,2441.9,2441.8,0.55]
[1747615770013,4.09517179,2441.9,2441.8,10.604]
[1747615770712,4.09550722,2441.7,2441.6,0.55]
[1747615770880,4.09550722,2441.7,2441.6,11.154]
[1747615771082,14.6743373,2442.4,2441.5,0.8045]
[1747615771083,4.09567496,2441.6,2441.5,0.8045]
[1747615771388,4.09567496,2441.6,2441.5,10.604]
[1747615771584,4.09567496,2441.6,2441.5,11.49591382]
[1747615774201,4.09668168,2441.0,2440.9,0.31912608]
[1747615774604,12.09668168,2441.0,2440.9,0.31912608]
[1747615774934,16.40901737,2440.8,2440.7,0.42640801]
[1747615775106,27.73861737,2440.8,2440.7,0.12330723]
[1747615776205,27.73861737,2440.8,2440.1,0.84070936]
[1747615776408,0.7256,2440.1,2439.4,0.55]
[1747615776611,4.09920065,2439.5,2439.4,0.55]